Cogmind - Beta 16 @@@ ROGUE MODE // 2025.11.06 @ 01:00:05 Player: daxter767676 Result: Destroyed by M4-MPD(R) with Subdweller Beam Cannon Performance ------------- Evolutions (0) 0 Regions Visited (2) 400 Robots Destroyed (21) 105 Value Destroyed (387) 387 Prototype IDs (2) 40 Alien Tech Used (0) 0 Bonus (0) 0 TOTAL SCORE: 932 Bonus ------- None Cogmind --------- Core Integrity 0/250 Matter 300/300 Energy 250/250 System Corruption 0% Temperature Cool (9) Movement Core (800) Ox15 Location -10/Subcaves Parts ------- > --- POWER (1) -------- Ion Engine > --- PROPULSION (2) --- (None) > --- UTILITY (2) ------ High-capacity Storage Unit Propulsion Shielding > --- WEAPON (2) ------- (None) > --- INVENTORY (20) --- Ion Engine Ion Engine Light Ion Engine Subdweller Power Source Disposable Heat Sink Small Storage Unit Improved Terrain Scanner Small Laser Mining Claw Scrap Shield Fragment (48) Peak State ------------ > --- POWER ------------ Light Ion Engine > --- PROPULSION ------- Wheel Wheel > --- UTILITY ---------- Improved Terrain Scanner Seismic Detector > --- WEAPON ----------- Medium Laser Small Laser > --- INVENTORY -------- Light Ion Engine Wheel Small Storage Unit Improved Terrain Scanner [Rating: 9] Favorites ----------- Power Ion Engine Engine Ion Engine Propulsion Wheel Leg Aluminum Leg Wheel Wheel Utility Propulsion Shielding Device Seismic Detector Storage High-capacity Storage Unit Protection Propulsion Shielding Weapon Medium Laser Energy Gun Medium Laser Ballistic Gun Light Assault Rifle Build | -11 -10 -10 ------- Run | Yrd Mat Sub Slots Evolved . | . . . Power . | . . . Propulsion . | . . . Utility . | . . . Weapon . | . . . Parts Attached 13 | 5 7 1 Power 2 | . 2 . Engine 2 | . 2 . Core . | . . . Reactor . | . . . Propulsion 4 | 2 1 1 Treads . | . . . Leg 1 | . . 1 Wheel 3 | 2 1 . Hover . | . . . Flight . | . . . Utility 5 | 3 2 . Device 3 | 3 . . Storage 1 | . 1 . Processor . | . . . Hackware . | . . . Protection 1 | . 1 . Artifact . | . . . Weapon 2 | . 2 . Energy Gun 1 | . 1 . Energy Cannon . | . . . Ballistic Gun 1 | . 1 . Ballistic Cannon . | . . . Launcher . | . . . Special Weapon . | . . . Impact Weapon . | . . . Slashing Weapon . | . . . Piercing Weapon . | . . . Special Melee Weapon . | . . . Unidentified Prototypes . | . . . Parts Lost 10 | . 6 4 Power 1 | . 1 . Propulsion 4 | . 2 2 Utility 2 | . 2 . Weapon 3 | . 1 2 Highest Loss Streak 3 | . 2 3 To Critical Strikes 1 | . 1 . Average Backups 5 | 4 4 8 Power 1 | 1 1 3 Propulsion . | 2 . . Utility 1 | . 1 2 Weapon 1 | 1 1 2 Tool/Special . | . . . Unused Backups 15 | 10 2 3 Power 2 | 1 . 1 Propulsion 7 | 7 . . Utility 1 | . . 1 Weapon 5 | 2 2 1 Tool/Special . | . . . Average Slot Usage (%) 75 | . 73 78 Engine 13 | . 13 14 Leg 1 | . . 3 Wheel 15 | . 18 8 Device 7 | . 9 . Storage 5 | . 2 14 Protection 5 | . 2 14 Energy Gun 18 | . 21 11 Ballistic Gun 7 | . 5 12 Peak Build Rating 9 | 8 9 7 Average Rating 5 | 5 5 6 On Entrance 7 | 6 8 7 Avg Prop Armor Cover (%) . | . . . Naked Turns . | . . . Heaviest Build 49 | 11 49 49 Greatest Support 20 | 20 20 10 Greatest Overweight (x) 15 | 1 4 15 Average Overweight (x) 1 | . . 4 Largest Inventory Capacity 20 | 8 20 20 Average Capacity 10 | 7 7 20 Most Carried 10 | 8 8 10 Average Carried 5 | 4 4 8 Final Capacity 20 | 5 20 20 Final Carried 10 | 5 8 10 Class Distribution -------------------- 100% | Mutant Dominant Class ---------------- Mutant | -10/Materials Mutant | -10/Subcaves Resources | -11 -10 -10 ----------- Run | Yrd Mat Sub Matter Collected 351 | 250 80 21 Remotely . | . . . Salvage Created 580 | 145 340 95 Parts 43 | 15 20 8 Haulers Intercepted . | . . . Recyclers Shooed 1 | 1 . . Parts Field Recycled . | . . . Retrieved Matter . | . . . Parts Self-Destructed 6 | . . 6 Prevented . | . . . Parts Restored . | . . . Kills | -11 -10 -10 ------- Run | Yrd Mat Sub Combat Hostiles Destroyed 16 | . 14 2 Guns 16 | . 14 2 Classes Destroyed 5 | 2 2 1 Tunneler 4 | 4 . . Recycler 1 | 1 . . Swarmer 9 | . 9 . Grunt 5 | . 5 . Subdweller 2 | . . 2 Best Kill Streak 3 | 2 3 2 Combat Bots Only 3 | . 3 2 Max Kills in Single Turn 1 | 1 1 1 Gunslinging . | . . . Exploded . | . . . Melee . | . . . Uniques/NPCs Destroyed . | . . . Combat | -11 -10 -10 -------- Run | Yrd Mat Sub Hostile Shots Fired 95 | . 75 20 Missed 24 | . 14 10 Hits 71 | . 61 10 Projectile 71 | . 61 10 AOE 3 | . . 3 Critical Strikes 1 | . 1 . Damage Taken 909 | . 587 322 Core 266 | . 140 126 Absorbed by Shields . | . . . Redirected to Shielding 30 | . 12 18 Regen/Repaired (Parts) 3 | . 3 . Core Remaining (%) 100 | 100 . . Volleys Fired 68 | 11 44 13 Largest 2 | 2 2 2 Hottest 90 | 80 90 70 Shots Fired 117 | 14 80 23 Gun 117 | 14 80 23 Cannon . | . . . Launcher . | . . . Special . | . . . Kinetic 23 | . 10 13 Thermal 91 | 11 70 10 Explosive . | . . . Electromagnetic 3 | 3 . . Robot Hit Streak 11 | 10 11 9 Robot Miss Streak 5 | 1 5 1 Penetration Max . | . . . Secondary Targets 2 | . 2 . Max Gunslinging Chain 1 | . 1 . Shots Hit Robots 77 | 11 49 17 Core Hits 34 | 6 21 7 Critical Kills . | . . . Critical Parts Destroyed . | . . . Critical Strikes 5 | . 5 . Burn 5 | . 5 . Melee Attacks . | . . . Impact . | . . . Slashing . | . . . Piercing . | . . . Sneak Attacks . | . . . Combat Hostiles . | . . . Follow-up Attacks . | . . . Damage Inflicted 873 | 126 567 180 Guns 873 | 126 567 180 Cannons . | . . . Explosions . | . . . Melee . | . . . Ramming . | . . . Kinetic 101 | . 34 67 Thermal 759 | 113 533 113 Explosive . | . . . Electromagnetic 13 | 13 . . Impact . | . . . Slashing . | . . . Piercing . | . . . Highest Corruption . | . . . Average Corruption . | . . . Corruption Purged . | . . . Corruption Blocked . | . . . Overload Shots . | . . . Overflow Damage . | . . . Projectiles . | . . . Explosions . | . . . Melee . | . . . Knockbacks . | . . . Impact . | . . . Kinetic . | . . . Secondary . | . . . Self-Inflicted Damage . | . . . Shots . | . . . Rammed . | . . . Targets Rammed . | . . . Kicked . | . . . Crushed . | . . . Highest Temperature 270 | 54 270 2 Average Temperature 88 | 29 94 1 Received Heat Transfer 201 | . 144 57 Effects 4 | . 4 . Energy Bleed 2 | . 2 . Interference 2 | . 2 . Siege Activations . | . . . Martial Activations . | . . . Shielding Activations . | . . . Robots Disrupted . | . . . Combat Hostiles . | . . . Robots Corrupted . | . . . Combat Hostiles . | . . . Parts Fried . | . . . Impact Corruptions . | . . . Robots Melted . | . . . Combat Hostiles . | . . . Parts Melted 4 | . 4 . Heat Transferred 2390 | 250 1807 333 Parts Sabotaged . | . . . Parts Stolen . | . . . Parts Stripped . | . . . Power Chain Reactions . | . . . Alert | -11 -10 -10 ------- Run | Yrd Mat Sub Maximum Alert Level . | . . . Low Security (%) 100 | 100 100 . Level 1 . | . . . Level 2 . | . . . Level 3 . | . . . Level 4 . | . . . Level 5 . | . . . High Security . | . . . Max Security . | . . . Peak Influence 101 | 10 101 . Initial 3 | . 3 . Average 45 | 3 52 . Influence Increases 396 | 25 371 . Destroy 0b10 Robot/C 280 | . 280 . Destroy 0b10 Robot/NC 25 | 25 . . Destroy Leader 50 | . 50 . Successful Hack 11 | . 11 . Lose Combat Pursuer 30 | . 30 . Influence Decreases 396 | 20 285 91 Entered New Map 46 | . 2 44 Time Decay 290 | 20 223 47 Lost Part 60 | . 60 . Squads Dispatched 1 | . 1 . Investigation . | . . . Extermination . | . . . Reinforcement 1 | . 1 . Assault . | . . . Garrison . | . . . Intercept . | . . . Searches Triggered . | . . . Construction Impeded . | . . . Haulers Reinforced . | . . . Active Scanning Responses . | . . . Cargo Convoy Interrupts . | . . . Stealth | -11 -10 -10 --------- Run | Yrd Mat Sub Distress Signals 3 | . 3 . Communications Jammed . | . . . Distress Signals . | . . . Times Spotted 26 | . 20 6 Peak Tracking Total 4 | . 4 3 Tactical Retreats 2 | . 1 1 Traps | -11 -10 -10 ------- Run | Yrd Mat Sub Traps Triggered . | . . . Indirectly . | . . . Trap Hack Attempts . | . . . Triggered . | . . . Disarmed . | . . . Reprogrammed . | . . . Reused . | . . . Traps Extracted . | . . . Installed . | . . . Triggered . | . . . Machines | -11 -10 -10 ---------- Run | Yrd Mat Sub Machines Disabled . | . . . Max in Single Turn . | . . . Machines Repaired . | . . . Machines Dismantled . | . . . Machines Sabotaged . | . . . Overloaded Fab Kills . | . . . Hacking | -11 -10 -10 --------- Run | Yrd Mat Sub Machines Accessed 6 | . 6 . Terminals 5 | . 5 . Fabricators . | . . . Repair Stations 1 | . 1 . Recycling Units . | . . . Scanalyzers . | . . . Garrison Access . | . . . Total Hacks 23 | . 23 . Successful 14 | . 14 . Failed 9 | . 9 . Catastrophic . | . . . Database Lockouts . | . . . Manual 14 | . 14 . Terminals 20 | . 20 . Fabricators . | . . . Repair Stations 3 | . 3 . Recycling Units . | . . . Scanalyzers . | . . . Garrison Access . | . . . Terminal Hacks 4 | . 4 . Prototype ID Bank 1 | . 1 . Emergency Access Points 2 | . 2 . Scanalyzer Index 1 | . 1 . Fabricator Hacks . | . . . Repair Station Hacks 2 | . 2 . Scan Component 1 | . 1 . Repair 1 | . 1 . Recycling Unit Hacks . | . . . Scanalyzer . | . . . Garrison Access Hacks . | . . . Unauthorized Hacks 8 | . 8 . Terminals 8 | . 8 . Track 1 | . 1 . Botnet 3 | . 3 . Skim 4 | . 4 . Fabricators . | . . . Repair Stations . | . . . Recycling Units . | . . . Scanalyzers . | . . . Garrison Access . | . . . Data Cores Recovered . | . . . Used . | . . . Hacking Detections 6 | . 6 . Full Trace Events . | . . . Feedback Events . | . . . Feedback Blocked . | . . . Robot Schematics Acquired . | . . . Robots Built . | . . . Authchips . | . . . Time . | . . . Total Robot Build Rating . | . . . Part Schematics Acquired . | . . . Parts Built . | . . . Authchips . | . . . Time . | . . . Total Part Build Rating . | . . . Part Studies Acquired . | . . . Parts Repaired 1 | . 1 . Time 38 | . 38 . Parts Recycled . | . . . Recycled Matter . | . . . Retrieved Matter . | . . . Retrieved Components . | . . . Parts Scanalyzed . | . . . Part Schematics Acquired . | . . . Parts Damaged . | . . . Bothacking | -11 -10 -10 ------------ Run | Yrd Mat Sub Used RIF Installer . | . . . Robots Hacked . | . . . Non-combat . | . . . Combat . | . . . Robot Hacks Applied . | . . . Relay Couplers Released . | . . . Fabnet Peak Effective % . | . . . Robots Rewired . | . . . Allies Hacked . | . . . Hacks Repelled . | . . . Allies | -11 -10 -10 -------- Run | Yrd Mat Sub Total Allies . | . . . Largest Group . | . . . Highest-Rated Group . | . . . Highest-Rated Ally . | . . . Total Orders . | . . . Ally Attacks . | . . . Total Damage . | . . . Kills . | . . . Allies Corrupted . | . . . Allies Melted . | . . . Intel | -11 -10 -10 ------- Run | Yrd Mat Sub Active Infowar (turns) 231 | 25 206 . Terrain 215 | 25 190 . Seismic 228 | 22 206 . Robot Analysis Total . | . . . Derelict Logs Recovered . | . . . Drone Launches . | . . . Drone Recoveries . | . . . Exploration | -11 -10 -10 ------------- Run | Yrd Mat Sub Turns Passed 909 | 95 598 216 Spaces Moved 451 | 57 336 58 Core 75 | . 71 4 Treads . | . . . Legs 10 | 3 . 7 Wheels 366 | 54 265 47 Hover . | . . . Flight . | . . . Fastest Speed 50 | 80 50 140 Average Speed 112 | 83 99 216 Slowest Speed 800 | 120 150 800 Overloaded Moves . | . . . Propulsion Burnouts . | . . . Robots Hopped . | . . . Potential Cave-ins . | . . . Cave-ins Triggered . | . . . Exploration Rate (%) 24 | 3 63 7 Regions Visited 2 Branch Regions 1 Pre-discovered Areas . | . . . Known Exits Taken . | . . . Unknown Exits Taken 2 | 1 1 . Scrap Searched . | . . . Spaces Dug . | . . . Terrain Destroyed . | . . . Melee . | . . . Projectile . | . . . AOE . | . . . Terrain Rammed . | . . . Walls Destroyed . | . . . Machines Disabled . | . . . Actions | -11 -10 -10 --------- Run | Yrd Mat Sub Total 745 | 93 519 133 Wait 193 | 11 124 58 Move 449 | 56 335 58 Hop . | . . . Pick Up 11 | 1 7 3 Fast Attach 7 | 3 4 . Attach 4 | 1 2 1 Detach 3 | 3 . . Swap 2 | 1 1 . Drop 8 | 6 2 . Fire 68 | 11 44 13 Melee . | . . . Ram . | . . . Kick . | . . . Crush . | . . . Escape Stasis . | . . . Rewire . | . . . Trap . | . . . Miscellaneous . | . . . Route ------- -11/Scrapyard -10/Materials (discovered 4 exits: [*Mat x2] / [*Min] / [*Sub]) -10/Subcaves History --------- Turn | Location | Event 11 | -11/Scrapyard | Discovered new exit (range 3) 96 | -11/Scrapyard | Entered Materials 161 | -10/Materials | Repaired Imp. Terrain Scanner 301 | -10/Materials | Build established: Mutant 322 | -10/Materials | Discovered new exit (range 8) 464 | -10/Materials | Core integrity fell below 50% 472 | -10/Materials | Discovered new exit (range 16) 621 | -10/Materials | Discovered new exit (range 14) 690 | -10/Materials | Discovered new exit (range 5) 694 | -10/Materials | Entered Subcaves 695 | -10/Subcaves | Approached by a straggling Scientist 884 | -10/Subcaves | Core integrity fell below 20% 904 | -10/Subcaves | A Subdweller sparked back to life 904 | -10/Subcaves | A Subdweller sparked back to life 904 | -10/Subcaves | A Subdweller sparked back to life 910 | -10/Subcaves | Destroyed by M4-MPD(R) with Subdweller Beam Cannon Last Messages --------------- 00844_ CY-SU1(R) destroyed. B8-ZQR(c): "I think it's somewhere southeast of here" 00847_ Acquired Scrap Shield Fragment. 00852_ Acquired Disposable Heat Sink. 00857_ Acquired 18 matter. 00861_ Subatomizers dissect the Disposable Heat Sink. 00873_ Acquired Sub. Power Source. 00875_ Med. Laser destroyed. 00879_ Acquired 1 matter. 00882_ 6S-CCU(R) affixes Scrap Shield Fragment to Scrap Shield. 00883_ Acquired 1 matter. 00883_ Lgt. Assault Rifle destroyed. 00883_ Aluminum Leg destroyed. 00883_ 6S-CCU(R) destroyed. 00887_ Subatomizers dissect the Sub. Laser. 00904_ 4A-7GI(R) creaks and sparks as it begins to move. 00904_ M4-MPD(R) creaks and sparks as it begins to move. 00904_ 88-EJF(R) creaks and sparks as it begins to move. Map ----- +----------------------------------------------------+ | ??????????????????????????????## ###????????????? | | ??????????????????????????????# ##??????????????? | | ??????????????????????????????# #??????????????? | | ??????????????????????????##### #??????????????? | | ??????????????????????????# ## ##??????????????? | | ??????????????????????????# ##??????????????? | | ??????????????????????????# ##?????????????? | | ??????????????????????????# #?????????????? | | ??????????????????????????# #?????????????? | | ??????????????????????????## #?????????????? | | ???????????????????????????## ##?????????????? | | ????????????????????????????#"" #??????????????? | | ????????????????????????????#"" "#??????????????? | | ???????????????? ????????#####" "##??????????????? | | ??????????????# ? ???????# "## ##???????????????? | | ??????????????# ? ??????# #??##????????????? | | ??????????????? #?????# # #? ""????????????? | | ???????????????? #????# ### ##? ""????????????? | | ???????????????# ###?# ####? """"???????????? | | ?????????????### #;;;## ##### """"" ?????????? | | ?????????????" #;; ;; %; """""" #??????? | | ???????????? " ;; ;## ;;[% ???????? | | ???????????? " ; ; & =; ???????????? | | ???????????? " &%&;#??????????????? | | ?????????????????# *;# ""#???????? | | ?????????????????#; @ c ; #???????? | | ?????????????????#;;; ;; #???????? | | ?????????????????###### ;;;; #???????? | | ??????????????????????##; ; R R&<##???????? | | ?????????????????????? # ## < #????????? | | ?????????????????????## # ? "R" #???????? | | ??????????????????????## # ## "" ???????? | | ???????????????????????## ####?# & ? ???????? | | ????????????????????????# #????? ## ?????????? | | ????????????????????????# ##??????#?# ?????????? | | ???????????????????????? ??????????# ?????????? | | ???????????????????????? ?????????????????????? | | ??????????????????????? ?????????????????????? | | ???????????????????????? ## ?????????????????????? | | ???????????????????????##?? ?????????????????????? | | ??????????????????????????? ?????????????????????? | | ?????????????????????????????????????????????????? | | ?????????????????????????????????????????????????? | | ?????????????????????????????????????????????????? | | ?????????????????????????????????????????????????? | | ?????????????????????????????????????????????????? | | ?????????????????????????????????????????????????? | | ?????????????????????????????????????????????????? | | ?????????????????????????????????????????????????? | | ?????????????????????????????????????????????????? | +----------------------------------------------------+ Best States ------------- Heat Dissipation 25 Energy Generation 10 Energy Capacity 250 Matter Stores 300 Matter Capacity 300 Sight Range 16 Terrain Scan Range 16 Terrain Scan Density 10 Propulsion Shielding 33 Evasion (%) 44 Item Schematics ----------------- None Robot Schematics ------------------ None Fabricated ------------ Nothing Repaired ---------- Imp. Terrain Scanner | 86% | -10/Materials Studied --------- None Alien Tech Used ----------------- None Achievements -------------- None Challenges ------------ None Game ------ Seed SigixAssemblyExtractor Manual? 0 Play Time 00:17:30 Cumulative 159.6 hours Start 2025.11.06 @ 00:27:07 End 2025.11.06 @ 01:00:05 Sessions 1 Manual Loads 0 Difficulty Rogue Special Mode None Game No. 170 Rogue 168 Adventurer 2 Explorer 0 Win Type - Total 0 Types 0/0/0/0/0/0/0/0/0/0 Lore% 65 Gallery% 57 Achievement% 32 Wizard Run 0 Options --------- Layout 2 ASCII 0 Keyboard 1 Movement Vi Keybinds 0 Fullscreen 0 Font 42/SmallcapsGlow Map View 29x24 Zoom Use 100% Tactical HUD 1 Map Filters NONE Filters NONE Steam 1 RUN: 29618abf-ba13-42d3-a4b0-ada6777210aa